Cogmind - Beta 12 @@@ ROGUE MODE // 2023.03.29 @ 16:55:47 Player: Exp. Geonium Core Result: Destroyed by 7V-RTL with Dispersion Rifle Performance ------------- Evolutions (1) 500 Regions Visited (6) 1200 Robots Destroyed (38) 190 Value Destroyed (815) 815 Prototype IDs (29) 580 Alien Tech Used (0) 0 Bonus (300) 300 TOTAL SCORE: 3585 Bonus ------- Aligned with FarCom 300 Cogmind --------- Core Integrity 0/400 Matter 119/300 Energy 184/200 System Corruption 0% Temperature Warm (101) Movement Treading (960) Ox10 Location -8/Mines Parts ------- > --- POWER (1) -------- Cold Fusion Reactor > --- PROPULSION (3) --- Light Treads Improved Aluminum Leg > --- UTILITY (3) ------ Humpback Experimental Targeting Computer > --- WEAPON (2) ------- Spread Laser > --- INVENTORY (35) --- Heavy Deuterium Engine Light Treads Wheel Large Storage Unit Makeshift Terrain Scanner Transport Network Coupler Advanced Launcher Guidance Computer Improved Target Analyzer Experimental Core Analyzer Advanced Weapon Cycler 8R-AWN's Armor/EX EX Chip 1 EX Chip 1 EX Chip 1 EX Chip 1 EX Chip 1 EX Chip 1 EX Chip 1 EX Chip 2 EX Chip 2 Makeshift System Shield Advanced Component Analysis Suite Improved System Guard System Purifier Advanced Recalibrator Rocket Launcher Datajack Datajack Peak State ------------ > --- POWER ------------ Makeshift Power Source > --- PROPULSION ------- Improved Aluminum Leg Makeshift Leg Makeshift Leg > --- UTILITY ---------- Humpback Experimental Targeting Computer > --- WEAPON ----------- 8R-AWN's Boregun Makeshift Spear > --- INVENTORY -------- Heavy Deuterium Engine Cold Fusion Reactor Light Treads Light Treads Wheel Large Storage Unit Makeshift Terrain Scanner Transport Network Coupler Advanced Launcher Guidance Computer Improved Target Analyzer Experimental Core Analyzer Advanced Weapon Cycler 8R-AWN's Armor/EX EX Chip 1 EX Chip 1 EX Chip 1 EX Chip 1 EX Chip 1 EX Chip 2 EX Chip 2 Makeshift System Shield Advanced Component Analysis Suite Improved System Guard System Purifier Advanced Recalibrator Spread Laser Heavy Assault Rifle Rocket Launcher Datajack Datajack [Rating: 50] Favorites ----------- Power Makeshift Power Source Engine Makeshift Power Source Reactor Cold Fusion Reactor Propulsion Light Treads Treads Light Treads Leg Makeshift Leg Wheel Wheel Utility Large Storage Unit Device Heat Sink Storage Large Storage Unit Processor Experimental Targeting Computer Protection Hardened Light Armor Plating Weapon Makeshift Spear Energy Gun EM Pulse Gun Ballistic Gun 8R-AWN's Boregun Ballistic Cannon Improved Light Cannon Piercing Weapon Makeshift Spear Build | -11 -10 -10 -9 -9 -9 -8 ------- Run | Jun Mat Min Mat Min Exi Min Slots Evolved 2 | . . . 2 . . . Power . | . . . . . . . Propulsion 1 | . . . 1 . . . Utility 1 | . . . 1 . . . Weapon . | . . . . . . . Parts Attached 44 | 3 3 2 6 2 24 4 Power 7 | . . 1 1 . 4 1 Engine 5 | . . 1 1 . 3 . Core . | . . . . . . . Reactor 2 | . . . . . 1 1 Propulsion 16 | 2 . . 4 1 8 1 Treads 10 | 2 . . 3 . 4 1 Leg 3 | . . . . . 3 . Wheel 3 | . . . 1 1 1 . Hover . | . . . . . . . Flight . | . . . . . . . Utility 9 | . 2 . . . 7 . Device 1 | . 1 . . . . . Storage 2 | . 1 . . . 1 . Processor 1 | . . . . . 1 . Hackware . | . . . . . . . Protection 5 | . . . . . 5 . Artifact . | . . . . . . . Weapon 12 | 1 1 1 1 1 5 2 Energy Gun 1 | . . . . . . 1 Energy Cannon . | . . . . . . . Ballistic Gun 7 | 1 1 . . . 4 1 Ballistic Cannon 2 | . . . 1 1 . . Launcher . | . . . . . . . Special Weapon . | . . . . . . . Impact Weapon . | . . . . . . . Slashing Weapon . | . . . . . . . Piercing Weapon 2 | . . 1 . . 1 . Special Melee Weapon . | . . . . . . . Unidentified Prototypes 6 | . . . 1 . 5 . Parts Lost 18 | . 2 . 2 . 8 6 Power 3 | . 1 . . . 1 1 Propulsion 7 | . . . 2 . 3 2 Utility 2 | . . . . . 2 . Weapon 6 | . 1 . . . 2 3 Highest Loss Streak 8 | . 1 . 1 . 8 6 To Critical Strikes 4 | . . . . . 4 . Average Slot Usage (%) 83 | . 85 100 87 88 78 82 Engine 9 | . 10 14 11 11 8 5 Treads 21 | . 28 28 25 22 17 . Leg 3 | . . . . . 5 31 Wheel 3 | . . . 7 11 4 . Device 4 | . 4 14 11 11 1 . Storage 10 | . 14 14 11 11 7 11 Processor 4 | . . . . . 7 11 Protection 1 | . . . . . 2 . Energy Gun 2 | . 9 . . . . . Ballistic Gun 11 | . 18 24 2 . 9 11 Ballistic Cannon 2 | . . . 8 11 1 . Piercing Weapon 7 | . . 3 11 11 10 5 Naked Turns . | . . . . . . . Heaviest Build 212 | 12 32 29 35 35 212 212 Greatest Support 60 | 40 40 40 60 16 53 53 Greatest Overweight (x) 21 | . . . 2 3 21 3 Average Overweight (x) 2 | . . . 1 2 4 3 Largest Inventory Capacity 35 | 8 15 15 15 15 35 35 Average Capacity 17 | 8 10 15 15 15 21 35 Most Carried 34 | 6 9 8 15 15 34 34 Average Carried 11 | 5 5 7 13 14 12 32 Final Capacity 35 | 8 15 15 15 15 35 35 Final Carried 34 | 4 8 8 15 15 34 30 Class Distribution -------------------- 63% | Mutant 25% | Hauler-Mutant 10% | Scavenger-Mutant Dominant Class ---------------- Mutant | -10/Materials Mutant | -10/Mines Mutant | -9/Materials Mutant | -9/Mines Hauler-Mutant | -9/Exiles Hauler-Mutant | -8/Mines Resources | -11 -10 -10 -9 -9 -9 -8 ----------- Run | Jun Mat Min Mat Min Exi Min Matter Collected 1245 | 200 158 24 79 13 771 . Remotely . | . . . . . . . Salvage Created 1768 | . 310 109 644 . 597 108 Parts 147 | . 24 7 35 . 75 6 Haulers Intercepted 1 | . 1 . . . . . Recyclers Shooed 3 | . 3 . . . . . Parts Field Recycled . | . . . . . . . Retrieved Matter . | . . . . . . . Parts Self-Destructed . | . . . . . . . Prevented . | . . . . . . . Kills | -11 -10 -10 -9 -9 -9 -8 ------- Run | Jun Mat Min Mat Min Exi Min Combat Hostiles Destroyed 26 | . 7 2 13 . 4 . Melee 13 | . . 2 10 . 1 . Guns 10 | . 7 . . . 3 . Cannons 3 | . . . 3 . . . Classes Destroyed 10 | . 3 1 3 . 3 . Worker 2 | . . . 1 . . 1 Tunneler 1 | . . 1 . . . . Hauler 1 | . 1 . . . . . Recycler 3 | . . . 2 . . 1 Turret 1 | . . . . . 1 . Swarmer 5 | . 2 . 3 . . . Grunt 15 | . 5 2 8 . . . Sentry 2 | . . . 2 . . . Zionite 5 | . . . . . 5 . Assembled 3 | . . . . . 3 . Best Kill Streak 4 | . 2 2 4 . 3 1 Combat Bots Only 3 | . 2 2 3 . 3 . Max Kills in Single Turn 1 | . 1 1 1 . 1 1 Gunslinging . | . . . . . . . Exploded . | . . . . . . . Melee 1 | . . 1 1 . 1 . Uniques/NPCs Destroyed 4 | . . . . . 4 . 8R-AWN (-9/Exiles) EX-BIN (-9/Exiles) EX-DEC (-9/Exiles) EX-HEX (-9/Exiles) Combat | -11 -10 -10 -9 -9 -9 -8 -------- Run | Jun Mat Min Mat Min Exi Min Damage Taken 3146 | . 492 83 463 . 1217 891 Core 522 | . 90 12 43 . 215 162 Absorbed by Shields . | . . . . . . . Core Remaining (%) 79 | 100 . 59 . . . . Volleys Fired 174 | . 34 1 9 . 96 34 Largest 2 | . 2 2 1 . 2 2 Hottest 65 | . 60 40 39 . 46 65 Shots Fired 248 | . 67 2 9 . 131 39 Gun 238 | . 67 2 . . 130 39 Cannon 10 | . . . 9 . 1 . Launcher . | . . . . . . . Special . | . . . . . . . Kinetic 218 | . 45 2 9 . 131 31 Thermal 8 | . . . . . . 8 Explosive . | . . . . . . . Electromagnetic 22 | . 22 . . . . . Robot Hit Streak 25 | . 17 19 22 . 13 25 Robot Miss Streak 5 | . 4 . 1 . 5 2 Penetration Max 1 | . . . . . 1 1 Secondary Targets 1 | . 1 . . . . . Max Gunslinging Chain 1 | . 1 . . . . . Shots Hit Robots 216 | . 47 6 32 . 93 38 Core Hits 88 | . 16 4 17 . 37 14 Critical Kills 6 | . . . . . 4 2 Critical Parts Destroyed 16 | . . . . . 9 7 Critical Strikes 34 | . . . 5 . 15 14 Destroy 29 | . . . . . 15 14 Impale 5 | . . . 5 . . . Melee Attacks 46 | . . 5 37 . 4 . Impact . | . . . . . . . Slashing . | . . . . . . . Piercing 46 | . . 5 37 . 4 . Sneak Attacks 6 | . . 1 5 . . . Combat Hostiles . | . . . . . . . Follow-up Attacks . | . . . . . . . Damage Inflicted 3935 | . 556 157 951 . 1527 744 Guns 2794 | . 549 20 . . 1481 744 Cannons 142 | . . . 142 . . . Explosions . | . . . . . . . Melee 992 | . . 137 809 . 46 . Ramming 7 | . 7 . . . . . Kinetic 2636 | . 415 20 142 . 1481 578 Thermal 166 | . . . . . . 166 Explosive . | . . . . . . . Electromagnetic 134 | . 134 . . . . . Impact . | . . . . . . . Slashing . | . . . . . . . Piercing 992 | . . 137 809 . 46 . Highest Corruption . | . . . . . . . Average Corruption . | . . . . . . . Corruption Purged . | . . . . . . . Corruption Blocked . | . . . . . . . Overload Shots . | . . . . . . . Overflow Damage 29 | . . . 29 . . . Projectiles 7 | . . . 7 . . . Explosions . | . . . . . . . Melee 22 | . . . 22 . . . Knockbacks 1 | . 1 . . . . . Impact 1 | . 1 . . . . . Kinetic . | . . . . . . . Secondary . | . . . . . . . Self-Inflicted Damage . | . . . . . . . Shots . | . . . . . . . Rammed 3 | . 3 . . . . . Targets Rammed 3 | . 3 . . . . . Kicked . | . . . . . . . Crushed . | . . . . . . . Highest Temperature 213 | . 60 . . . 213 92 Average Temperature 69 | . 25 . . . 90 38 Received Heat Transfer 675 | . 219 48 147 . . 261 Siege Activations . | . . . . . . . Robots Corrupted . | . . . . . . . Combat Hostiles . | . . . . . . . Parts Fried . | . . . . . . . Impact Corruptions . | . . . . . . . Robots Melted . | . . . . . . . Combat Hostiles . | . . . . . . . Parts Melted . | . . . . . . . Heat Transferred . | . . . . . . . Parts Sabotaged . | . . . . . . . Parts Stolen . | . . . . . . . Parts Stripped . | . . . . . . . Power Chain Reactions . | . . . . . . . Missiles Intercepted . | . . . . . . . Alert | -11 -10 -10 -9 -9 -9 -8 ------- Run | Jun Mat Min Mat Min Exi Min Peak Influence 293 | . 198 79 293 88 . 21 Initial 88 | . . 24 . 88 . . Average 61 | . 40 35 114 88 . 2 Maximum Alert Level 1 | . . . 1 . . . Low Security (%) 94 | 100 100 100 80 100 . 100 Level 1 5 | . . . 19 . . . Level 2 . | . . . . . . . Level 3 . | . . . . . . . Level 4 . | . . . . . . . Level 5 . | . . . . . . . High Security . | . . . . . . . Max Security . | . . . . . . . Squads Dispatched 3 | . . . 2 . . 1 Investigation 1 | . . . 1 . . . Extermination . | . . . . . . . Reinforcement 2 | . . . 1 . . 1 Assault . | . . . . . . . Garrison . | . . . . . . . Intercept . | . . . . . . . Searches Triggered . | . . . . . . . Construction Impeded 1 | . . . . . . 1 Haulers Reinforced . | . . . . . . . Active Scanning Responses . | . . . . . . . Cargo Convoy Interrupts . | . . . . . . . Stealth | -11 -10 -10 -9 -9 -9 -8 --------- Run | Jun Mat Min Mat Min Exi Min Distress Signals 4 | . . . 3 . . 1 Communications Jammed . | . . . . . . . Distress Signals . | . . . . . . . Times Spotted 90 | . 9 2 22 . 55 2 Peak Tracking Total 9 | . 3 2 5 . 9 4 Tactical Retreats 31 | . . . 2 . 27 2 Traps | -11 -10 -10 -9 -9 -9 -8 ------- Run | Jun Mat Min Mat Min Exi Min Traps Triggered . | . . . . . . . Indirectly . | . . . . . . . Trap Hack Attempts . | . . . . . . . Triggered . | . . . . . . . Disarmed . | . . . . . . . Reprogrammed . | . . . . . . . Reused . | . . . . . . . Traps Extracted . | . . . . . . . Installed . | . . . . . . . Triggered . | . . . . . . . Exploded 3 | . . . . . 3 . Machines | -11 -10 -10 -9 -9 -9 -8 ---------- Run | Jun Mat Min Mat Min Exi Min Machines Disabled 14 | . 3 . . . 11 . Max in Single Turn 2 | . 1 . . . 2 . Machines Repaired . | . . . . . . . Machines Sabotaged . | . . . . . . . Overloaded Fab Kills . | . . . . . . . Hacking | -11 -10 -10 -9 -9 -9 -8 --------- Run | Jun Mat Min Mat Min Exi Min Machines Accessed 7 | . 2 . 3 . 2 . Terminals 5 | . 2 . 3 . . . Fabricators . | . . . . . . . Repair Stations . | . . . . . . . Recycling Units . | . . . . . . . Scanalyzers . | . . . . . . . Garrison Access . | . . . . . . . Total Hacks 15 | . 6 . 7 . 2 . Successful 4 | . 1 . 1 . 2 . Failed 11 | . 5 . 6 . . . Catastrophic 4 | . 3 . 1 . . . Database Lockouts . | . . . . . . . Manual 10 | . 4 . 5 . 1 . Terminals 13 | . 6 . 7 . . . Fabricators . | . . . . . . . Repair Stations . | . . . . . . . Recycling Units . | . . . . . . . Scanalyzers . | . . . . . . . Garrison Access . | . . . . . . . Terminal Hacks 4 | . 1 . 1 . 2 . Record 1 | . . . . . 1 . Branch Access Points 1 | . . . 1 . . . Registered Components 1 | . 1 . . . . . EX-Prototype ID Bank 1 | . . . . . 1 . Fabricator Hacks . | . . . . . . . Repair Station Hacks . | . . . . . . . Recycling Unit Hacks . | . . . . . . . Scanalyzer . | . . . . . . . Garrison Access Hacks . | . . . . . . . Unauthorized Hacks . | . . . . . . . Terminals . | . . . . . . . Fabricators . | . . . . . . . Repair Stations . | . . . . . . . Recycling Units . | . . . . . . . Scanalyzers . | . . . . . . . Garrison Access . | . . . . . . . Data Cores Recovered . | . . . . . . . Used . | . . . . . . . Hacking Detections 5 | . 2 . 3 . . . Full Trace Events 2 | . 1 . 1 . . . Feedback Events . | . . . . . . . Feedback Blocked . | . . . . . . . Robot Schematics Acquired . | . . . . . . . Robots Built . | . . . . . . . Authchips . | . . . . . . . Time . | . . . . . . . Total Robot Build Rating . | . . . . . . . Part Schematics Acquired . | . . . . . . . Parts Built . | . . . . . . . Authchips . | . . . . . . . Time . | . . . . . . . Total Part Build Rating . | . . . . . . . Parts Repaired . | . . . . . . . Time . | . . . . . . . Parts Recycled . | . . . . . . . Recycled Matter . | . . . . . . . Retrieved Matter . | . . . . . . . Retrieved Components . | . . . . . . . Parts Scanalyzed . | . . . . . . . Part Schematics Acquired . | . . . . . . . Parts Damaged . | . . . . . . . Bothacking | -11 -10 -10 -9 -9 -9 -8 ------------ Run | Jun Mat Min Mat Min Exi Min Used RIF Installer . | . . . . . . . Robots Hacked . | . . . . . . . Non-combat . | . . . . . . . Combat . | . . . . . . . Robot Hacks Applied . | . . . . . . . Relay Couplers Released . | . . . . . . . Fabnet Peak Effective % . | . . . . . . . Robots Rewired . | . . . . . . . Allies Hacked . | . . . . . . . Hacks Repelled . | . . . . . . . Allies | -11 -10 -10 -9 -9 -9 -8 -------- Run | Jun Mat Min Mat Min Exi Min Total Allies . | . . . . . . . Largest Group . | . . . . . . . Highest-Rated Group . | . . . . . . . Highest-Rated Ally . | . . . . . . . Total Orders . | . . . . . . . Ally Attacks . | . . . . . . . Total Damage . | . . . . . . . Kills . | . . . . . . . Allies Corrupted . | . . . . . . . Allies Melted . | . . . . . . . Intel | -11 -10 -10 -9 -9 -9 -8 ------- Run | Jun Mat Min Mat Min Exi Min Robot Analysis Total . | . . . . . . . Derelict Logs Recovered 1 | . . 1 . . . . Drone Launches . | . . . . . . . Drone Recoveries . | . . . . . . . Exploration | -11 -10 -10 -9 -9 -9 -8 ------------- Run | Jun Mat Min Mat Min Exi Min Turns Passed 4586 | 5 1004 401 691 84 2273 128 Spaces Moved 1824 | 1 285 239 357 63 878 1 Core 4 | . . . . . 4 . Treads 987 | 1 285 239 111 . 351 . Legs 111 | . . . . . 110 1 Wheels 722 | . . . 246 63 413 . Hover . | . . . . . . . Flight . | . . . . . . . Fastest Speed 125 | 160 160 160 130 125 125 343 Average Speed 183 | 160 160 160 139 128 219 343 Slowest Speed 560 | 160 160 160 160 130 560 343 Overloaded Moves . | . . . . . . . Propulsion Burnouts . | . . . . . . . Robots Hopped . | . . . . . . . Cave-ins Triggered . | . . . . . . . Exploration Rate (%) 32 | 2 41 39 31 18 90 4 Regions Visited 6 Branch Regions 4 Pre-discovered Areas 1 | . . . . . 1 . Known Exits Taken 1 | . . . 1 . . . Unknown Exits Taken 5 | 1 1 1 . 1 1 . Scrap Searched 1 | . . . . 1 . . Spaces Dug . | . . . . . . . Terrain Destroyed 7 | . . . . . 2 5 Melee . | . . . . . . . Projectile 5 | . . . . . 2 3 AOE . | . . . . . . . Terrain Rammed . | . . . . . . . Walls Destroyed . | . . . . . . . Machines Disabled . | . . . . . . . Actions | -11 -10 -10 -9 -9 -9 -8 --------- Run | Jun Mat Min Mat Min Exi Min Total 2774 | 5 768 250 499 67 1097 88 Wait 599 | . 434 3 76 . 37 49 Move 1818 | . 284 238 356 62 877 1 Hop . | . . . . . . . Pick Up 57 | . 7 1 10 1 38 . Fast Attach 12 | . 2 . 4 . 6 . Attach 21 | 2 1 1 1 1 11 4 Detach 5 | . . . . . 5 . Swap 11 | 1 . 1 1 1 7 . Drop 28 | 2 3 . 5 2 16 . Fire 174 | . 34 1 9 . 96 34 Melee 46 | . . 5 37 . 4 . Ram . | . . . . . . . Kick . | . . . . . . . Crush 3 | . 3 . . . . . Escape Stasis . | . . . . . . . Rewire . | . . . . . . . Trap . | . . . . . . . Miscellaneous . | . . . . . . . Route ------- -11/Junkyard -10/Materials (discovered 2 exits: *Mat / [*Min]) -10/Mines (discovered 2 exits: *Mat x2) -9/Materials (discovered 3 exits: Mat / *Min x2) -9/Mines -9/Exiles -8/Mines History --------- Turn | Location | Event 6 | -11/Junkyard | Discovered new exit (range 0) 6 | -11/Junkyard | Entered Materials 311 | -10/Materials | Build established: Mutant 861 | -10/Materials | Discovered new exit (range 16) 914 | -10/Materials | Discovered new exit (range 12) 1010 | -10/Materials | Entered Mines 1013 | -10/Mines | Discovered new exit (range 15) 1029 | -10/Mines | Learned 2 Materials zone layouts 1179 | -10/Mines | Discovered new exit (range 8) 1221 | -10/Mines | A weapon hastily lodged in a ceiling crevice suddenly fell to the ground 1411 | -10/Mines | Entered Materials 1411 | -9/Materials | Evolved 2 slots: Propulsion x1, Utility x1 1412 | -9/Materials | Identified exit to Materials 1706 | -9/Materials | Discovered new exit (range 10) 1747 | -9/Materials | Identified exit to Mines 2102 | -9/Materials | Entered Mines 2145 | -9/Mines | Received a Rocket Launcher from a helpful Derelict 2181 | -9/Mines | Deemed a non-threat by the Exiles lab entrance 2181 | -9/Mines | Discovered new exit (range 5) 2186 | -9/Mines | Entered Exiles 2223 | -9/Exiles | Met 8R-AWN 2245 | -9/Exiles | Met EX-HEX 2285 | -9/Exiles | Met EX-BIN 2301 | -9/Exiles | Aligned with FarCom system 2302 | -9/Exiles | Given EX-Vault access code 2331 | -9/Exiles | Opened EX-Vault 2359 | -9/Exiles | Warned to stay clear of 0b10 Research branches 2393 | -9/Exiles | Met EX-DEC 2399 | -9/Exiles | Learned location of Zion (-7) 2513 | -9/Exiles | Attacked by the Exiles 2693 | -9/Exiles | Core integrity fell below 50% 2711 | -9/Exiles | Destroyed 8R-AWN 2740 | -9/Exiles | Lost 8 parts (1p3n2u2w) 2750 | -9/Exiles | Found Prototype Protection 2750 | -9/Exiles | Identified 8R-AWN's Armor/EX 2787 | -9/Exiles | Found Prototype Processor 2791 | -9/Exiles | Found Prototype Ballistic Gun 2792 | -9/Exiles | Identified 8R-AWN's Boregun 2849 | -9/Exiles | Identified Exp. Targeting Computer 2977 | -9/Exiles | Destroyed EX-BIN 3162 | -9/Exiles | Destroyed EX-DEC 3181 | -9/Exiles | Destroyed EX-HEX 3195 | -9/Exiles | Build established: Scavenger-Mutant 3703 | -9/Exiles | Build established: Hauler-Mutant 3927 | -9/Exiles | Found Prototype Processor 3969 | -9/Exiles | Found Prototype Device 4432 | -9/Exiles | Discovered new exit (range 10) 4459 | -9/Exiles | Entered Mines 4512 | -8/Mines | 7V-RTL came to Exiles' defense 4560 | -8/Mines | Core integrity fell below 20% 4587 | -8/Mines | Destroyed by 7V-RTL with Dispersion Rifle Last Messages --------------- 04561_ HV Slug penetrates 7V-RTL. 04561_ 7V-RTL suffers critical hit (Destroy). 04561_ Destroyed Arm. Heavy Treads. 04561_ HV Slug penetrates Wall. 04563_ HV Slug penetrates 7V-RTL. 04563_ HV Slug penetrates Wall. 04565_ HV Slug penetrates 7V-RTL. 04565_ HV Slug penetrates Wall. 04567_ HV Slug penetrates 7V-RTL. 04567_ 7V-RTL suffers critical hit (Destroy). 04567_ Destroyed Rnf. Quantum Reactor. 04567_ HV Slug penetrates Wall. 04569_ HV Slug penetrates 7V-RTL. 04569_ HV Slug penetrates Wall. 04569_ Mak. Leg destroyed. 04570_ Wall collapses. 04571_ 8R-AWN's Boregun destroyed. 04581_ Seismic Survey Station disabled. 04583_ Mak. Leg destroyed. 04586_ K-01 Serf collects debris. Map ----- +----------------------------------------------------+ | ????????????????????????????????????????? | | ????????????????????????????????????????? | | ????????????????????????????????????????? | | ????????????????????????????????????????? | | ????????????????????????????????????????? | | ????????????????????????????????????????? | | ????????????????????????????????????????? | | ????????????????????????????????????????? | | ????????????????????????????????????????? | | ????????????????????????????????????????? | | ????????????????????????? ??????????????? | | ????????????????????????? ??????????????? | | ????????????????????????? ??????????????? | | ?????????????????????????;??????????????? | | ?????????????????????????!??????????????? | | ?????????????????????????=??????????????? | | ?????????????????????????%??????????????? | | ????????????????????????#*######????????? | | ????????????????????????#** ????????? | | ????????????????????????#! #???????? | | ????????????????????????#= "" #???????? | | ????????????????????????g% """ #???????? | | ????????????????????????#Y """ #???????? | | ???????????????????????## #???????? | | ???????????????????????#; " " #???????? | | ???????????????????????#;@ """ #???????? | | ???????????????????????#; """ #???????? | | ???????????????????????## #???????? | | ????????????????????????#;#;#####???????? | | ????????????????????????# # #???????????? | | ????????????????????????# #? ???????????? | | ????????????????????????###?;#??????????? | | ????????????????????????????? ??????????? | | ????????????????????????????? ?????????? | | ??????????????????????????????k?????????? | | ?????????????????????????????? ????????? | | ??????????????????????????????? ????????? | | ??????????????????????????????? ???????? | | ???????????????????????????????? ???????? | | ????????????????????????????????????????? | | ????????????????????????????????????????? | | ????????????????????????????????????????? | | ????????????????????????????????????????? | | ????????????????????????????????????????? | | ????????????????????????????????????????? | | ????????????????????????????????????????? | | ????????????????????????????????????????? | | ????????????????????????????????????????? | | ????????????????????????????????????????? | | ????????????????????????????????????????? | +----------------------------------------------------+ Best States ------------- Heat Dissipation 38 Energy Generation 18 Energy Capacity 310 Matter Stores 300 Matter Capacity 300 Sight Range 16 Terrain Scan Density 10 Armor Coverage 900 Resistance: EX 90 Evasion (%) 40 Targeting Accuracy 12 Recoil Reduction 3 Item Schematics ----------------- None Robot Schematics ------------------ None Fabricated ------------ Nothing Alien Tech Used ----------------- None Achievements -------------- None Challenges ------------ None Game ------ Seed ElectronThrowingMace Manual? 0 Play Time 00:26:19 Cumulative 353.0 hours Start 2023.03.29 @ 16:20:59 End 2023.03.29 @ 16:55:47 Sessions 1 Manual Loads 0 Difficulty Rogue Special Mode None Game No. 403 Rogue 403 Adventurer 0 Explorer 0 Win Type - Total 11 Types 8/0/2/1/0/0/0/0/0 Lore% 80 Gallery% 89 Achievement% 78 Wizard Run 0 Options --------- ASCII 0 Keyboard 0 Movement Numpad Keybinds 0 Fullscreen 1 Font 18/Terminus Map View 76x50 Tactical HUD 1 Map Filters NONE Filters NONE Steam 1 RUN: 1f341719-30ae-4037-9376-dcf860f8f363